fUSD/lending_fUSD_20250820
["ID","MTS","AMOUNT","RATE_DAILY","PERIOD"]
[380355057,1755700450091,-400.0,0.0001997,2]
[380355058,1755700450100,-514.0,0.0001997,2]
[380355059,1755700450109,-2800.0,0.00019981,2]
[380355060,1755700450118,-1000.0,0.00019981,2]
[380355061,1755700450128,-77001.60776145,0.00019985,2]
[380355062,1755700450138,-443.804494,0.00019985,2]
[380355063,1755700450148,-443.804494,0.00019985,2]
[380355064,1755700450157,-443.804494,0.00019985,2]
[380355065,1755700450170,-443.804494,0.00019985,2]
[380355066,1755700450180,-151.0,0.00019985,2]
[380355067,1755700450190,-151.0,0.00019985,2]
[380355068,1755700450200,-151.0,0.00019985,2]
[380355069,1755700450210,-299.778001,0.00019985,2]
[380355070,1755700450220,-151.0,0.00019985,2]
[380355071,1755700450229,-299.778001,0.00019985,2]
[380355072,1755700450239,-151.0,0.00019985,2]
[380355073,1755700450249,-208.753801,0.00019985,2]
[380355074,1755700450258,-151.0,0.00019985,2]
[380355075,1755700450267,-151.0,0.00019985,2]
[380355076,1755700450277,-151.0,0.00019985,2]
[380355077,1755700450286,-299.778001,0.00019985,2]
[380355078,1755700450296,-151.0,0.00019985,2]
[380355079,1755700450306,-151.0,0.00019985,2]
[380355080,1755700450316,-151.0,0.00019985,2]
[380355081,1755700450326,-299.778001,0.00019985,2]
[380355082,1755700450335,-151.0,0.00019985,2]
[380355083,1755700450345,-151.0,0.00019985,2]
[380355084,1755700450354,-151.0,0.00019985,2]
[380355085,1755700450364,-462.198119,0.00019985,2]
[380355086,1755700450374,-462.198119,0.00019985,2]
[380355087,1755700450383,-151.0,0.00019985,2]
[380355088,1755700450392,-462.198119,0.00019985,2]
[380355089,1755700450401,-151.0,0.00019985,2]
[380355090,1755700450411,-151.0,0.00019985,2]
[380355091,1755700450424,-462.198119,0.00019985,2]
[380355092,1755700450433,-151.0,0.00019985,2]
[380355093,1755700450443,-151.0,0.00019985,2]
[380355094,1755700450453,-151.0,0.00019985,2]
[380355095,1755700450463,-167.746567,0.00019985,2]
[380355096,1755700450483,-269.133278,0.00019985,2]
[380355097,1755700450493,-269.133278,0.00019985,2]
[380355098,1755700450502,-239.293365,0.00019985,2]
[380355099,1755700450512,-269.133278,0.00019985,2]
[380355100,1755700450522,-239.293365,0.00019985,2]
[380355101,1755700450531,-269.133278,0.00019985,2]
[380355102,1755700450542,-275.657654,0.00019985,2]
[380355103,1755700450552,-239.293365,0.00019985,2]
[380355104,1755700450561,-275.657654,0.00019985,2]
[380355105,1755700450571,-239.293365,0.00019985,2]
[380355106,1755700450581,-275.657654,0.00019985,2]
[380355107,1755700450590,-275.657654,0.00019985,2]
[380355108,1755700450600,-151.0,0.00019985,2]
[380355109,1755700450609,-151.0,0.00019985,2]
[380355110,1755700450618,-151.0,0.00019985,2]
[380355111,1755700450628,-151.0,0.00019985,2]
[380355112,1755700450638,-168.0,0.00019993,2]
[380355113,1755700450647,-400.0,0.00019999,2]
[380355114,1755700450657,-400.0,0.00019999,2]
[380355115,1755700450665,-400.0,0.00019999,2]
[380355116,1755700450676,-532.06,0.00019999,2]
[380355117,1755700450686,-400.0,0.00019999,2]
[380355118,1755700450695,-400.0,0.00019999,2]
[380355119,1755700450705,-400.0,0.00019999,2]
[380355120,1755700450714,-400.0,0.00019999,2]
[380355121,1755700450724,-400.0,0.00019999,2]
[380355122,1755700450733,-400.0,0.00019999,2]
[380355123,1755700450742,-400.0,0.00019999,2]
[380355124,1755700450751,-400.0,0.00019999,2]
[380355125,1755700450761,-1000.0,0.00019999,2]
[380355126,1755700450770,-45920.00691459,0.0002,2]
[380355127,1755700450780,-93249.8564611,0.0002,2]
[380355128,1755700450790,-1503.15759871,0.0002,2]
[380355129,1755700450800,-6004.89741741,0.0002,2]
[380355130,1755700450809,-1433.46711556,0.0002,5]
[380355131,1755700450819,-25092.10254918,0.0002,2]
[380355132,1755700450828,-408225.56827928,0.0002,5]
[380355133,1755700450838,-200.0,0.0002,2]
[380355134,1755700450848,-8300.0,0.0002,4]
[380355135,1755700450857,-165.7,0.0002,2]
[380355136,1755700450867,-5734.95012876,0.0002,2]
[380355137,1755700450877,-1269.37703327,0.0002,2]
[380355138,1755700450891,-251.642829,0.0002,2]
[380355139,1755700450901,-151.0,0.0002,2]
[380355140,1755700450910,-251.642829,0.0002,2]
[380355141,1755700450922,-151.0,0.0002,2]
[380355142,1755700450933,-251.642829,0.0002,2]
[380355143,1755700450942,-151.0,0.0002,2]
[380355144,1755700450952,-251.642829,0.0002,2]
[380355145,1755700450962,-151.0,0.0002,2]
[380355146,1755700450973,-7231.13439201,0.0002,2]
[380355147,1755700450982,-2024.83254549,0.0002,3]
[380355148,1755700450992,-151.0,0.0002,2]
[380355149,1755700451001,-2866.55827322,0.0002,7]
[380355150,1755700451011,-297.817257,0.0002,2]
[380355151,1755700451021,-516.82664838,0.0002,7]
[380355152,1755700451032,-297.817257,0.0002,2]
[380355153,1755700451041,-151.0,0.0002,2]
[380355154,1755700451051,-297.817257,0.0002,2]
[380355155,1755700451060,-150.0,0.0002,2]
[380355156,1755700451070,-151.0,0.0002,2]
[380355157,1755700451079,-1024.43858187,0.0002,2]
[380355158,1755700451088,-297.817257,0.0002,2]
[380355159,1755700451098,-151.0,0.0002,2]
[380355160,1755700451107,-151.0,0.0002,2]
[380355161,1755700451116,-151.0,0.0002,2]
[380355162,1755700451126,-151.0,0.0002,2]
[380355163,1755700451135,-151.0,0.0002,2]
[380355164,1755700451145,-58834.37570211,0.0002,2]
[380355165,1755700451155,-151.0,0.0002,2]
[380355166,1755700451164,-232.748796,0.0002,2]
[380355167,1755700451177,-151.0,0.0002,2]
[380355168,1755700451187,-151.0,0.0002,2]
[380355169,1755700451196,-151.0,0.0002,2]
[380355170,1755700451206,-232.748796,0.0002,2]
[380355171,1755700451215,-151.0,0.0002,2]
[380355172,1755700451225,-151.0,0.0002,2]
[380355173,1755700451235,-232.748796,0.0002,2]
[380355174,1755700451245,-232.748796,0.0002,2]
[380355175,1755700451255,-151.0,0.0002,2]
[380355176,1755700451265,-151.0,0.0002,2]
[380355177,1755700451275,-151.0,0.0002,2]
[380355178,1755700451285,-200.0,0.0002,2]
[380355179,1755700451296,-4000.0,0.0002,4]
[380355180,1755700451305,-152.413,0.0002001,2]
[380355181,1755700451316,-298.26089446,0.0002002,2]
[380355182,1755700451326,-558.38577448,0.00020067,2]
[380355183,1755700451336,-2500.0,0.00020164,2]
[380355184,1755700451347,-805.81616925,0.00020164,2]
[380355185,1755700451356,-1000.0,0.00020187,2]
[380355186,1755700451366,-5888.0,0.00020189,2]
[380355187,1755700451376,-5888.0,0.00020201,2]
[380355188,1755700451386,-216.0,0.0002026,2]
[380355189,1755700451395,-400.0,0.00020273,2]
[380355190,1755700451405,-408.67,0.00020273,2]
[380355191,1755700451415,-267.81,0.00020273,2]
[380355192,1755700451427,-502.29,0.00020273,2]
[380355193,1755700451436,-400.0,0.00020273,2]
[380355194,1755700451445,-400.0,0.00020273,2]
[380355195,1755700451455,-400.0,0.00020273,2]
[380355196,1755700451465,-213.53,0.00020273,2]
[380355197,1755700451476,-162.380719,0.00020274,2]
[380355198,1755700451486,-150.0,0.00020325,4]
[380355199,1755700451496,-167.15940193,0.00020325,2]
[380355200,1755700451506,-168.0,0.00020332,2]
[380355201,1755700451515,-5888.0,0.00020351,2]
[380355202,1755700451525,-448.1,0.0002041,2]
[380355203,1755700451534,-606.14203835,0.000205,2]
[380355204,1755700451543,-992.5,0.000205,2]
[380355205,1755700451553,-514.04,0.00020547,2]
[380355206,1755700451562,-400.0,0.00020547,2]
[380355207,1755700451572,-400.0,0.00020547,2]
[380355208,1755700451582,-261.5,0.00020547,2]
[380355209,1755700451591,-168.0,0.0002056,2]
[380355210,1755700451601,-5888.0,0.00020576,2]
[380355211,1755700451610,-488.26900773,0.00020678,2]
[380355212,1755700451620,-5888.0,0.0002068,2]
[380355213,1755700451630,-5888.0,0.00020693,2]
[380355214,1755700451640,-3000.0,0.00020712,2]
[380355215,1755700451649,-438.37625615,0.00020725,2]
[380355216,1755700451659,-2545.53957219,0.00020756,2]
[380355217,1755700451670,-1800.0,0.00020803,2]
[380355218,1755700451680,-216.0,0.0002081,2]
[380355219,1755700451690,-483.42,0.00020821,2]
[380355220,1755700451699,-172.64,0.00020821,2]
[380355221,1755700451709,-168.3888056,0.00020822,2]
[380355222,1755700451719,-167.15940193,0.0002085,2]
[380355223,1755700451728,-150.0,0.00020874,4]
[380355224,1755700451738,-500.0,0.00020899,7]
[380355225,1755700451747,-500.0,0.00020899,7]
[380355226,1755700451758,-500.0,0.00020899,7]
[380355227,1755700451768,-500.0,0.00020899,7]
[380355228,1755700451780,-500.0,0.00020899,7]
[380355229,1755700451790,-500.0,0.00020899,7]
[380355230,1755700451800,-272.19,0.00020899,7]
[380355231,1755700451810,-500.0,0.00020899,7]
[380355232,1755700451820,-500.0,0.00020899,7]
[380355233,1755700451830,-500.0,0.00020899,7]
[380355234,1755700451840,-500.0,0.00020899,7]
[380355235,1755700451849,-500.0,0.00020899,7]
[380355236,1755700451860,-500.0,0.00020899,7]
[380355237,1755700451870,-500.0,0.00020899,7]
[380355238,1755700451884,-500.0,0.00020899,7]
[380355239,1755700451897,-500.0,0.00020899,7]
[380355240,1755700451908,-500.0,0.00020899,7]
[380355241,1755700451919,-500.0,0.00020899,7]
[380355242,1755700451934,-500.0,0.00020899,7]
[380355243,1755700451943,-500.0,0.00020899,7]
[380355244,1755700451955,-500.0,0.00020899,7]
[380355245,1755700451965,-500.0,0.00020899,7]
[380355246,1755700451975,-500.0,0.00020899,7]
[380355247,1755700451985,-500.0,0.00020899,7]
[380355248,1755700451995,-500.0,0.00020899,7]
[380355249,1755700452004,-500.0,0.00020899,7]
[380355250,1755700452014,-500.0,0.00020899,7]
[380355251,1755700452024,-613.32,0.00020899,7]
[380355252,1755700452034,-500.0,0.00020899,7]
[380355253,1755700452044,-212.04014818,0.000209,7]
[380355254,1755700452053,-458.46930693,0.000209,7]
[380355255,1755700452063,-448.1,0.00020906,2]
[380355256,1755700452073,-800.0,0.00020966,2]
[380355257,1755700452083,-800.0,0.00020966,2]
[380355258,1755700452094,-800.0,0.00020966,2]
[380355259,1755700452103,-800.0,0.00020966,2]
[380355260,1755700452113,-800.0,0.00020966,2]
[380355261,1755700452122,-800.0,0.00020966,2]
[380355262,1755700452132,-800.0,0.00020966,2]
[380355263,1755700452141,-800.0,0.00020966,2]
[380355264,1755700452151,-800.0,0.00020966,2]
[380355265,1755700452160,-800.0,0.00020966,2]
[380355266,1755700452175,-800.0,0.00020966,2]
[380355267,1755700452185,-800.0,0.00020966,2]
[380355268,1755700452195,-800.0,0.00020966,2]
[380355269,1755700452204,-800.0,0.00020966,2]
[380355270,1755700452214,-800.0,0.00020966,2]
[380355271,1755700452223,-800.0,0.00020966,2]
[380355272,1755700452233,-800.0,0.00020966,2]
[380355273,1755700452242,-800.0,0.00020966,2]
[380355274,1755700452252,-3600.0,0.00021,22]
[380355275,1755700452261,-173932.43,0.00021,2]
[380355276,1755700452271,-4000.0,0.00021,4]
[380355277,1755700452280,-5888.0,0.00021008,2]
[380355278,1755700452289,-5888.0,0.00021054,2]
[380355279,1755700452299,-5888.0,0.00021068,2]
[380355280,1755700452309,-150.0,0.000211,2]
[380355281,1755700452318,-1000.0,0.000211,2]
[380355282,1755700452328,-5888.0,0.00021172,2]
[380355283,1755700452340,-5888.0,0.00021186,2]
[380355284,1755700452470,-3500.0,0.0002126,2]
[380355285,1755700452481,-168.0,0.00021272,2]
[380355286,1755700452490,-440.24359942,0.00021308,2]
[380355287,1755700452499,-168.0,0.00021342,2]
[380355288,1755700452509,-216.0,0.0002135,2]
[380355289,1755700452518,-5888.0,0.00021353,2]
[380355290,1755700452528,-174.61919141,0.0002137,2]
[380355291,1755700452537,-167.15940193,0.00021375,2]
[380355292,1755700452547,-309.29654756,0.00021389,2]
[380355293,1755700452556,-448.1,0.00021403,2]
[380355294,1755700452565,-150.0,0.00021423,4]
[380355295,1755700452574,-1000.0,0.00021428,2]
[380355296,1755700452583,-440.24359942,0.00021489,2]
[380355297,1755700452592,-1000.0,0.000215,2]
[380355298,1755700452602,-500.0,0.00021589,2]
[380355299,1755700452611,-322.88,0.00021616,2]
[380355300,1755700452620,-150.0,0.00021636,2]
[380355301,1755700452630,-150.0,0.00021637,2]
[380355302,1755700452639,-150.0,0.00021637,2]
[380355303,1755700452648,-150.0,0.00021652,2]
[380355304,1755700452657,-150.0,0.00021728,2]
[380355305,1755700452666,-150.0,0.00021779,2]
[380355306,1755700452679,-503.509045,0.000218,2]
[380355307,1755700452688,-165.7,0.000218,6]
[380355308,1755700452698,-150.0,0.00021807,2]
[380355309,1755700452708,-4000.0,0.00021808,2]
[380355310,1755700452716,-400.0,0.0002187,2]
[380355311,1755700452726,-500.0,0.00021873,2]
[380355312,1755700452735,-639.74227414,0.00021873,2]
[380355313,1755700452744,-500.0,0.00021873,2]
[380355314,1755700452754,-500.0,0.00021873,2]
[380355315,1755700452763,-160.03442829,0.00021873,2]
[380355316,1755700452772,-500.0,0.00021873,2]
[380355317,1755700452781,-500.0,0.00021873,2]
[380355318,1755700452790,-500.0,0.00021873,2]
[380355319,1755700452800,-500.0,0.00021873,2]
[380355320,1755700452810,-216.0,0.0002189,2]
[380355321,1755700452819,-221.0,0.0002189,2]
[380355322,1755700452828,-2000.0,0.00021898,2]
[380355323,1755700452837,-300.0,0.00021899,2]
[380355324,1755700452847,-300.0,0.00021899,2]
[380355325,1755700452855,-300.0,0.00021899,2]
[380355326,1755700452865,-1800.0,0.00021899,2]
[380355327,1755700452874,-400.0,0.00021899,2]
[380355328,1755700452886,-400.0,0.00021899,2]
[380355329,1755700452896,-485.8,0.00021899,2]
[380355330,1755700452906,-400.0,0.00021899,2]
[380355331,1755700452915,-400.0,0.00021899,2]
[380355332,1755700452930,-527.16,0.00021899,2]
[380355333,1755700452939,-400.0,0.00021899,2]
[380355334,1755700452949,-400.0,0.00021899,2]
[380355335,1755700452958,-546.1,0.00021899,2]
[380355336,1755700452968,-400.0,0.00021899,2]
[380355337,1755700452977,-400.0,0.00021899,2]
[380355338,1755700452987,-400.0,0.00021899,2]
[380355339,1755700452996,-400.0,0.00021899,2]
[380355340,1755700453005,-400.0,0.00021899,2]
[380355341,1755700453014,-400.0,0.00021899,2]
[380355342,1755700453024,-400.0,0.00021899,2]
[380355343,1755700453033,-400.0,0.00021899,2]
[380355344,1755700453042,-278.11103653,0.00021899,2]
[380355345,1755700453052,-403.37,0.00021899,2]
[380355346,1755700453062,-400.0,0.00021899,2]
[380355347,1755700453071,-400.0,0.00021899,2]
[380355348,1755700453080,-400.0,0.00021899,2]
[380355349,1755700453090,-400.0,0.00021899,2]
[380355350,1755700453100,-400.0,0.00021899,2]
[380355351,1755700453109,-400.0,0.00021899,2]
[380355352,1755700453118,-400.0,0.00021899,2]
[380355353,1755700453127,-400.0,0.00021899,2]
[380355354,1755700453136,-400.0,0.00021899,2]
[380355355,1755700453146,-400.0,0.00021899,2]
[380355356,1755700453155,-460.87,0.00021899,2]
[380355357,1755700453164,-400.0,0.00021899,2]
[380355358,1755700453178,-419.04,0.00021899,2]
[380355359,1755700453187,-400.0,0.00021899,2]
[380355360,1755700453196,-400.0,0.00021899,2]
[380355361,1755700453205,-517.44,0.00021899,2]
[380355362,1755700453215,-400.0,0.00021899,2]
[380355363,1755700453224,-400.0,0.00021899,2]
[380355364,1755700453234,-540.78,0.00021899,2]
[380355365,1755700453243,-475.92,0.00021899,2]
[380355366,1755700453253,-400.0,0.00021899,2]
[380355367,1755700453262,-400.0,0.00021899,2]
[380355368,1755700453271,-400.0,0.00021899,2]
[380355369,1755700453280,-400.0,0.00021899,2]
[380355370,1755700453290,-321.5412121,0.00021899,2]
[380355371,1755700453300,-400.0,0.00021899,2]
[380355372,1755700453310,-400.0,0.00021899,2]
[380355373,1755700453320,-400.0,0.00021899,2]
[380355374,1755700453329,-400.0,0.00021899,2]
[380355375,1755700453339,-400.0,0.00021899,2]
[380355376,1755700453348,-400.0,0.00021899,2]
[380355377,1755700453357,-400.0,0.00021899,2]
[380355378,1755700453366,-400.0,0.00021899,2]
[380355379,1755700453377,-400.0,0.00021899,2]
[380355380,1755700453386,-400.0,0.00021899,2]
[380355381,1755700453395,-400.0,0.00021899,2]
[380355382,1755700453404,-400.0,0.00021899,2]
[380355383,1755700453414,-400.0,0.00021899,2]
[380355384,1755700453427,-482.61,0.00021899,2]
[380355385,1755700453437,-400.0,0.00021899,2]
[380355386,1755700453445,-400.0,0.00021899,2]
[380355387,1755700453454,-400.0,0.00021899,2]
[380355388,1755700453463,-400.0,0.00021899,2]
[380355389,1755700453473,-400.0,0.00021899,2]
[380355390,1755700453483,-400.0,0.00021899,2]
[380355391,1755700453493,-400.0,0.00021899,2]
[380355392,1755700453502,-400.0,0.00021899,2]
[380355393,1755700453512,-487.75208849,0.00021899,2]
[380355394,1755700453521,-400.0,0.00021899,2]
[380355395,1755700453531,-400.0,0.00021899,2]
[380355396,1755700453540,-400.0,0.00021899,2]
[380355397,1755700453549,-400.0,0.00021899,2]
[380355398,1755700453559,-400.0,0.00021899,2]
[380355399,1755700453568,-400.0,0.00021899,2]
[380355400,1755700453577,-400.0,0.00021899,2]
[380355401,1755700453586,-400.0,0.00021899,2]
[380355402,1755700453596,-400.0,0.00021899,2]
[380355403,1755700453605,-400.0,0.00021899,2]
[380355404,1755700453614,-400.0,0.00021899,2]
[380355405,1755700453624,-400.0,0.00021899,2]
[380355406,1755700453632,-400.0,0.00021899,2]
[380355407,1755700453641,-400.0,0.00021899,2]
[380355408,1755700453650,-400.0,0.00021899,2]
[380355409,1755700453659,-448.1,0.00021899,2]
[380355410,1755700453669,-151.0,0.00021899,2]
[380355411,1755700453681,-216.82625301,0.00021899,4]
[380355412,1755700453690,-59388.99,0.000219,2]
[380355413,1755700453699,-167.15940193,0.000219,2]
[380355414,1755700453710,-171.18908434,0.000219,2]
[380355415,1755700453719,-488.26900773,0.000219,2]
[380355416,1755700453729,-558.38577448,0.000219,2]
[380355417,1755700453738,-443.804494,0.000219,2]
[380355418,1755700453748,-443.804494,0.000219,2]
[380355419,1755700453757,-443.804494,0.000219,2]
[380355420,1755700453766,-443.804494,0.000219,2]
[380355421,1755700453776,-151.0,0.000219,2]
[380355422,1755700453785,-151.0,0.000219,2]
[380355423,1755700453795,-299.778001,0.000219,2]
[380355424,1755700453803,-151.0,0.000219,2]
[380355425,1755700453812,-151.0,0.000219,2]
[380355426,1755700453822,-299.778001,0.000219,2]
[380355427,1755700453831,-151.0,0.000219,2]
[380355428,1755700453841,-151.0,0.000219,2]
[380355429,1755700453850,-151.0,0.000219,2]
[380355430,1755700453859,-151.0,0.000219,2]
[380355431,1755700453869,-299.778001,0.000219,2]
[380355432,1755700453878,-151.0,0.000219,2]
[380355433,1755700453891,-151.0,0.000219,2]
[380355434,1755700453900,-151.0,0.000219,2]
[380355435,1755700453909,-151.0,0.000219,2]
[380355436,1755700453918,-151.0,0.000219,2]
[380355437,1755700453933,-151.0,0.000219,2]
[380355438,1755700453942,-462.198119,0.000219,2]
[380355439,1755700453951,-299.778001,0.000219,2]
[380355440,1755700453961,-462.198119,0.000219,2]
[380355441,1755700453971,-151.0,0.000219,2]
[380355442,1755700453982,-462.198119,0.000219,2]
[380355443,1755700453991,-151.0,0.000219,2]
[380355444,1755700454001,-151.0,0.000219,2]
[380355445,1755700454010,-462.198119,0.000219,2]
[380355446,1755700454019,-151.0,0.000219,2]
[380355447,1755700454028,-151.0,0.000219,2]
[380355448,1755700454037,-151.0,0.000219,2]
[380355449,1755700454047,-269.133278,0.000219,2]
[380355450,1755700454057,-269.133278,0.000219,2]
[380355451,1755700454067,-239.293365,0.000219,2]
[380355452,1755700454076,-269.133278,0.000219,2]
[380355453,1755700454085,-151.0,0.000219,2]
[380355454,1755700454094,-239.293365,0.000219,2]
[380355455,1755700454104,-341.506234,0.000219,2]
[380355456,1755700454113,-269.133278,0.000219,2]
[380355457,1755700454122,-151.0,0.000219,2]
[380355458,1755700454132,-275.657654,0.000219,2]
[380355459,1755700454141,-341.506234,0.000219,2]
[380355460,1755700454151,-239.293365,0.000219,2]
[380355461,1755700454161,-275.657654,0.000219,2]
[380355462,1755700454171,-151.0,0.000219,2]
[380355463,1755700454182,-341.506234,0.000219,2]
[380355464,1755700454192,-239.293365,0.000219,2]
[380355465,1755700454201,-341.506234,0.000219,2]
[380355466,1755700454211,-275.657654,0.000219,2]
[380355467,1755700454220,-275.657654,0.000219,2]
[380355468,1755700454230,-151.0,0.000219,2]
[380355469,1755700454240,-1002.550348,0.000219,2]
[380355470,1755700454249,-151.0,0.000219,2]
[380355471,1755700454258,-151.0,0.000219,2]
[380355472,1755700454267,-151.0,0.000219,2]
[380355473,1755700454277,-1002.550348,0.000219,2]
[380355474,1755700454286,-151.0,0.000219,2]
[380355475,1755700454295,-1002.550348,0.000219,2]
[380355476,1755700454305,-1002.550348,0.000219,2]
[380355477,1755700454314,-151.0,0.000219,2]
[380355478,1755700454324,-1448.651496,0.000219,2]
[380355479,1755700454334,-151.0,0.000219,2]
[380355480,1755700454344,-417.804054,0.000219,2]
[380355481,1755700454353,-151.0,0.000219,2]
[380355482,1755700454362,-151.0,0.000219,2]
[380355483,1755700454371,-417.804054,0.000219,2]
[380355484,1755700454380,-151.0,0.000219,2]
[380355485,1755700454390,-329.396057,0.000219,2]
[380355486,1755700454399,-417.804054,0.000219,2]
[380355487,1755700454409,-1448.651496,0.000219,2]
[380355488,1755700454419,-329.396057,0.000219,2]
[380355489,1755700454433,-151.0,0.000219,2]
[380355490,1755700454443,-417.804054,0.000219,2]
[380355491,1755700454453,-1448.651496,0.000219,2]
[380355492,1755700454463,-151.0,0.000219,2]
[380355493,1755700454472,-329.396057,0.000219,2]
[380355494,1755700454482,-1448.651496,0.000219,2]
[380355495,1755700454492,-151.0,0.000219,2]
[380355496,1755700454501,-151.0,0.000219,2]
[380355497,1755700454511,-329.396057,0.000219,2]
[380355498,1755700454521,-200.0,0.0002191,7]
[380355499,1755700454530,-5000.0,0.00021918,2]
[380355500,1755700454539,-164.0425238,0.00021918,2]
[380355501,1755700454549,-520.30933186,0.00021918,2]
[380355502,1755700454559,-181.08010149,0.00021918,2]
[380355503,1755700454569,-150.62504572,0.00021973,4]
[380355504,1755700454578,-184.26180278,0.00021973,4]
[380355505,1755700454588,-251.01157101,0.00021973,2]
[380355506,1755700454599,-500.0,0.00021973,2]
[380355507,1755700454608,-500.0,0.00021973,2]
[380355508,1755700454618,-500.0,0.00021973,2]
[380355509,1755700454628,-500.0,0.00021973,2]
[380355510,1755700454637,-500.0,0.00021973,2]
[380355511,1755700454646,-500.0,0.00021973,2]
[380355512,1755700454656,-150.0,0.00021977,2]
[380355513,1755700454667,-790.66026478,0.00021979,2]
[380355514,1755700454681,-300.0,0.00021979,2]
[380355515,1755700454691,-300.0,0.00021979,2]
[380355516,1755700454700,-300.0,0.00021979,2]
[380355517,1755700454709,-1559.62259312,0.0002198,7]
[380355518,1755700454719,-63485.07052501,0.0002198,2]
[380355519,1755700454729,-87741.04366365,0.0002198,2]
[380355520,1755700454737,-1007.70425904,0.0002198,2]
[380355521,1755700454747,-1224.74825329,0.00021981,2]
[380355522,1755700454756,-1441.79224754,0.00021983,2]
[380355523,1755700454766,-1658.8362418,0.00021984,2]
[380355524,1755700454775,-1875.88023605,0.00021985,2]
[380355525,1755700454785,-305.048351,0.00021985,2]
[380355526,1755700454794,-2138.4335992,0.00021985,2]
[380355527,1755700454804,-2092.92423031,0.00021987,2]
[380355528,1755700454814,-2309.96822456,0.00021988,2]
[380355529,1755700454823,-2527.01221881,0.00021989,2]
[380355530,1755700454832,-15642.46078878,0.0002199,2]
[380355531,1755700454842,-300.0,0.00021998,2]
[380355532,1755700454851,-666.0,0.00021998,2]
[380355533,1755700454861,-666.0,0.00021998,2]
[380355534,1755700454870,-300.0,0.00021999,2]
[380355535,1755700454879,-300.0,0.00021999,2]
[380355536,1755700454893,-300.0,0.00021999,2]
[380355537,1755700454902,-300.0,0.00021999,2]
[380355538,1755700454912,-337.77713103,0.00021999,7]
[380355539,1755700454925,-500.02230309,0.00021999,2]
[380355540,1755700454935,-557.18344091,0.00021999,2]
[380355541,1755700454944,-500.0,0.00021999,2]
[380355542,1755700454953,-500.0,0.00021999,2]
[380355543,1755700454963,-2187.62,0.00021999,2]
[380355544,1755700454974,-666.0,0.00021999,2]
[380355545,1755700454983,-300.0,0.00021999,2]
[380355546,1755700454992,-666.0,0.00021999,2]
[380355547,1755700455002,-300.0,0.00021999,2]
[380355548,1755700455011,-300.0,0.00021999,2]
[380355549,1755700455020,-300.0,0.00021999,2]
[380355550,1755700455029,-150.0,0.00021999,2]
[380355551,1755700455039,-300.0,0.00021999,2]
[380355552,1755700455049,-300.0,0.00021999,2]
[380355553,1755700455058,-300.0,0.00021999,2]
[380355554,1755700455067,-6002.0,0.00022,3]
[380355555,1755700455076,-3600.0,0.00022,23]
[380355556,1755700455085,-127585.56650171,0.00022,4]